{"text_format":"1","workbook":"xlsx","n_sheets":2,"sheets":["登録ナンバーあり （記入例）","登録ナンバーあり"],"not_rendered":{"charts":0,"images":0,"macros":1,"external_links":0,"defined_names":2,"comments":0,"pivot_tables":0},"unopened":[],"bounds":{"document_bytes":16777216,"sheet_cells":100000,"rows_first":2000,"rows_last":500,"rows_between":2000,"halvings":0,"cell_chars":16384,"cell_head_chars":4096},"cells_cut":0,"cells_raw":0,"read":"whole","date_system":"1900"}

{"sheet":"登録ナンバーあり （記入例）","index":0,"n_rows":35,"n_cols":79,"rows_kept":35,"cut":false,"hidden":false,"merged":[[31,16,32,32],[28,27,28,29],[28,30,28,34],[28,35,28,40],[28,41,28,48],[28,49,28,53],[26,50,26,53],[27,7,27,10],[27,11,27,14],[27,15,27,16],[27,17,27,20],[27,21,27,24],[27,25,27,26],[27,27,27,30],[27,31,27,36],[27,37,27,38],[27,39,27,46],[27,47,27,49],[27,50,27,53],[26,0,28,0],[26,1,27,6],[26,7,26,18],[26,19,26,26],[26,27,26,35],[26,36,26,38],[26,39,26,42],[26,43,26,45],[26,46,26,49],[28,1,28,6],[28,7,28,9],[28,10,28,12],[28,13,28,15],[28,16,28,18],[28,19,28,23],[28,24,28,26],[23,50,23,53],[24,7,24,10],[24,11,24,14],[24,15,24,16],[24,17,24,20],[24,21,24,24],[24,25,24,26],[24,27,24,30],[24,31,24,36],[24,37,24,38],[24,39,24,46],[24,47,24,49],[24,50,24,53],[21,39,21,46],[21,47,21,49],[21,50,21,53],[23,0,25,0],[23,1,24,6],[23,7,23,18],[23,19,23,26],[23,27,23,35],[23,36,23,38],[23,39,23,42],[23,43,23,45],[23,46,23,49],[25,1,25,6],[25,7,25,9],[25,10,25,12],[25,13,25,15],[25,16,25,18],[25,19,25,23],[25,24,25,26],[25,27,25,29],[25,30,25,34],[25,35,25,40],[25,41,25,48],[25,49,25,53],[21,7,21,10],[21,11,21,14],[21,15,21,16],[21,17,21,20],[21,21,21,24],[21,25,21,26],[21,27,21,30],[21,31,21,36],[21,37,21,38],[18,47,18,49],[18,50,18,53],[20,0,22,0],[20,1,21,6],[20,7,20,18],[20,19,20,26],[20,27,20,35],[20,36,20,38],[20,39,20,42],[20,43,20,45],[20,46,20,49],[22,1,22,6],[22,7,22,9],[22,10,22,12],[22,13,22,15],[22,16,22,18],[22,19,22,23],[22,24,22,26],[22,27,22,29],[22,30,22,34],[22,35,22,40],[22,41,22,48],[22,49,22,53],[20,50,20,53],[18,11,18,14],[18,15,18,16],[18,17,18,20],[18,21,18,24],[18,25,18,26],[18,27,18,30],[18,31,18,36],[18,37,18,38],[18,39,18,46],[15,50,15,53],[17,0,19,0],[17,1,18,6],[17,7,17,18],[17,19,17,26],[17,27,17,35],[17,36,17,38],[17,39,17,42],[17,43,17,45],[17,46,17,49],[19,1,19,6],[19,7,19,9],[19,10,19,12],[19,13,19,15],[19,16,19,18],[19,19,19,23],[19,24,19,26],[19,27,19,29],[19,30,19,34],[19,35,19,40],[19,41,19,48],[19,49,19,53],[17,50,17,53],[18,7,18,10],[15,15,15,16],[15,17,15,20],[15,21,15,24],[15,25,15,26],[15,27,15,30],[15,31,15,36],[15,37,15,38],[15,39,15,46],[15,47,15,49],[14,0,16,0],[14,1,15,6],[14,7,14,18],[14,19,14,26],[14,27,14,35],[14,36,14,38],[14,39,14,42],[14,43,14,45],[14,46,14,49],[16,1,16,6],[16,7,16,9],[16,10,16,12],[16,13,16,15],[16,16,16,18],[16,19,16,23],[16,24,16,26],[16,27,16,29],[16,30,16,34],[16,35,16,40],[16,41,16,48],[16,49,16,53],[14,50,14,53],[15,7,15,10],[15,11,15,14],[12,31,12,36],[12,37,12,38],[12,39,12,46],[12,47,12,49],[12,50,12,53],[13,1,13,6],[13,7,13,9],[13,10,13,12],[13,13,13,15],[13,16,13,18],[13,19,13,23],[13,24,13,26],[13,27,13,29],[13,30,13,34],[13,35,13,40],[13,41,13,48],[13,49,13,53],[7,45,8,45],[7,46,8,46],[7,47,8,47],[7,48,8,48],[7,49,8,49],[7,50,8,53],[10,0,10,35],[11,0,13,0],[11,1,12,6],[11,7,11,18],[11,19,11,26],[11,27,11,35],[11,36,11,38],[11,39,11,42],[11,43,11,45],[11,46,11,49],[11,50,11,53],[12,7,12,10],[12,11,12,14],[12,15,12,16],[12,17,12,20],[12,21,12,24],[12,25,12,26],[12,27,12,30],[7,28,8,28],[7,29,8,29],[7,30,8,30],[7,31,8,31],[7,32,8,32],[7,33,8,35],[7,37,8,42],[7,43,8,43],[7,44,8,44],[7,19,8,19],[7,20,8,20],[7,21,8,21],[7,22,8,22],[7,23,8,23],[7,24,8,24],[7,25,8,25],[7,26,8,26],[7,27,8,27],[7,0,8,10],[7,11,8,11],[7,12,8,12],[7,13,8,13],[7,14,8,14],[7,15,8,15],[7,16,8,16],[7,17,8,17],[7,18,8,18],[0,1,1,16],[0,37,0,39],[0,41,0,53],[1,37,1,53],[2,1,3,16],[2,37,2,53],[3,37,3,39],[3,40,3,50],[3,51,6,53],[4,37,5,50],[6,0,6,10],[6,11,6,21],[6,22,6,32],[6,33,6,35],[6,37,6,50]]}
[null,"　納　品　書　",null,null,null,null,null,null,null,null,null,null,null,null,null,null,null,null,null,null,null,null,null,null,null,null,null,null,null,null,null,null,null,null,null,null,null,"住所",null,null,"〒","123-4567",null,null,null,null,null,null,null,null,null,null,null,null,null,null,null,null,null,null,null,null,null,null,null,null,"エンジンメーカー","コード","新・古",null,"排ガス区分",null,"架装メーカー","メーカーコード",null,"ｸﾚｰﾝﾒｰｶｰ","メーカーコード","シャーシーメーカー","メーカーコード"]
[null,null,null,null,null,null,null,null,null,null,null,null,null,null,null,null,null,null,null,null,null,null,null,null,null,null,null,null,null,null,null,null,null,null,null,null,null,"東京都○○○○○○○○123-45"]
[null,"株式会社　東海大阪レンタル　御中",null,null,null,null,null,null,null,null,null,null,null,null,null,null,null,null,null,null,null,null,null,null,null,null,null,null,null,null,null,null,null,null,null,null,null,null,null,null,null,null,null,null,null,null,null,null,null,null,null,null,null,null,null,null,null,null,null,null,null,null,null,null,null,null,"いすゞ","0072408","0：新品",null,"未対応",null,"アイチ","0010163",null,"タダノ","0010595","いすゞ","0011059"]
[null,null,null,null,null,null,null,null,null,null,null,null,null,null,null,null,null,null,null,null,null,null,null,null,null,null,null,null,null,null,null,null,null,null,null,null,null,"社名",null,null,null,null,null,null,null,null,null,null,null,null,null,"印",null,null,null,null,null,null,null,null,null,null,null,null,null,null,"キャタピラー","0020073","１：中古",null,"一般",null,"極東","0010540",null,"古河","0145600","スズキ","0010747"]
[null,null,null,null,null,null,null,null,null,null,null,null,null,null,null,null,null,null,null,null,null,null,null,null,null,null,null,null,null,null,null,null,null,null,null,null,null,"株式会社○○○○○○○○",null,null,null,null,null,null,null,null,null,null,null,null,null,null,null,null,null,null,null,null,null,null,null,null,null,null,null,null,"クボタ","0072382",null,null,"トンネル",null,"新明和","0071750",null,"前田","0020242","ダイハツ","0072694"]
[null,null,null,null,null,null,null,null,null,null,null,null,null,null,null,null,null,null,null,null,null,null,null,null,null,null,null,null,null,null,null,null,null,null,null,null,null,null,null,null,null,null,null,null,null,null,null,null,null,null,null,null,null,null,null,null,null,null,null,null,null,null,null,null,null,null,"コマツ","0010021",null,null,"二次\n規制適合",null,"タダノ","0010595",null,null,null,"トヨタ","0010786"]
["納　入　部　門　名",null,null,null,null,null,null,null,null,null,null,"注　文　番　号（11桁）",null,null,null,null,null,null,null,null,null,null,"納 入 年 月 日",null,null,null,null,null,null,null,null,null,null,"新品・中古区分",null,null,null,null,null,null,null,null,null,null,null,null,null,null,null,null,null,null,null,null,null,null,null,null,null,null,null,null,null,null,null,null,"スズキ","0010747",null,null,"触媒",null,"古河","0145600",null,null,null,"日産","0011017"]
[null,null,null,null,null,null,null,null,null,null,null,null,null,null,null,null,null,null,null,null,null,null,null,null,null,null,"年",null,null,"月",null,null,"日","0：新品",null,null,null,"取引先コード(7桁)",null,null,null,null,null,null,null,null,null,null,null,null,"000",null,null,null,null,null,null,null,null,null,null,null,null,null,null,null,"ダイハツ","0072694",null,null,"三次\n規制適合",null,"マツモト","0178340",null,null,null,"日野","0011124"]
[null,null,null,null,null,null,null,null,null,null,null,null,null,null,null,null,null,null,null,null,null,null,null,null,null,null,null,null,null,null,null,null,null,null,null,null,null,null,null,null,null,null,null,null,null,null,null,null,null,null,null,null,null,null,null,null,null,null,null,null,null,null,null,null,null,null,"トヨタ","0010786",null,null,"ｵﾌﾛｰﾄﾞ",null,"ﾓﾘﾀｴｺﾉｽ","0090511",null,null,null,"ホンダ","0077245"]
[null,null,null,null,null,null,null,null,null,null,null,null,null,null,null,null,null,null,null,null,null,null,null,null,null,null,null,null,null,null,null,null,null,null,null,null,null,null,null,null,null,null,null,null,null,null,null,null,null,null,null,null,null,null,null,null,null,null,null,null,null,null,null,null,null,null,"日産","0011017",null,null,"2011年\n基準適合",null,"兼松","1022711",null,null,null,"三菱","0175204"]
["【商　品　詳　細　情　報　　報　告　書】",null,null,null,null,null,null,null,null,null,null,null,null,null,null,null,null,null,null,null,null,null,null,null,null,null,null,null,null,null,null,null,null,null,null,null,null,null,null,null,null,null,null,null,null,null,null,null,null,null,null,null,null,null,null,null,null,null,null,null,null,null,null,null,null,null,"日野","0011124",null,null,"2014年\n基準適合",null,"酒井機工","0090170",null,null,null,"SUBARU","0011189"]
["No","東海大阪レンタル\n管 理 番 号",null,null,null,null,null,"機種（品名）",null,null,null,null,null,null,null,null,null,null,null,"性能（規格・型式）",null,null,null,null,null,null,null,"製造番号（シリアル）",null,null,null,null,null,null,null,null,"製造年月\n(西暦4桁)",null,null,"原動機\nメーカー",null,null,null,"メーカー\nコード",null,null,"原動機型式",null,null,null,"原動機番号",null,null,null,null,null,null,null,null,null,null,null,null,null,null,null,"三菱自動車","0072386",null,null,"2014年基準\n適合尿素",null,"ﾄｰﾌﾟﾗﾊﾝﾀ","0074161",null,null,null,"UDトラックス","0143321"]
[null,null,null,null,null,null,null,"排ガス区分",null,null,null,"キー番号",null,null,null,"荷台内\n寸法",null,"長さ\nL（ｍｍ）",null,null,null,"幅\nW （ｍｍ）",null,null,null,"煽り高さ",null,"高さ\nH （ｍｍ）",null,null,null,"バッテリーサイズ",null,null,null,null,null,"バッテリー\n個数",null,"タイヤサイズ",null,null,null,null,null,null,null,"尿素タンク容量\n（L）",null,null,"燃料タンク容量\n（L）",null,null,null,null,null,null,null,null,null,null,null,null,null,null,null,"三菱重工","0072386",null,null,"ﾎﾟｽﾄ新長期",null,"加藤","0075012"]
[null,"TOR照合",null,null,null,null,null,"架装\nメーカー",null,null,"メーカー\nコード",null,null,"シャーシ\nメーカー",null,null,"メーカー\nコード",null,null,"シャーシ型式",null,null,null,null,"クレーン\nメーカー",null,null,"メーカー\nコード",null,null,"クレーン型式",null,null,null,null,"クレーン製造番号",null,null,null,null,null,"ETC車載番号",null,null,null,null,null,null,null,"備考",null,null,null,null,null,null,null,null,null,null,null,null,null,null,null,null,"三菱ふそう","0175204",null,null,"ﾎﾟｽﾄﾎﾟｽﾄ\n新長期",null,"小平産業","ｰ"]
[1,"500050",null,null,null,null,null,"橋梁点検車",null,null,null,null,null,null,null,null,null,null,null,"AB-100/CD1415",null,null,null,null,null,null,null,"XYZ700-0000958",null,null,null,null,null,null,null,null,"2017-04-01",null,null,"日野",null,null,null,{"$f":"IFERROR(VLOOKUP(AN15,BO:BP,2,0),\"\")","v":"0011124"},null,null,"M16A-CQ",null,null,null,"12345",null,null,null,null,null,null,null,null,null,null,null,null,null,null,null,"ヤンマー","0072282",null,null,null,null,"東洋ﾎﾞﾃﾞｰ","0095921"]
[null,null,null,null,null,null,null,"ﾎﾟｽﾄポスト\n新長期",null,null,null,123456,null,null,null,"荷台内\n寸法",null,2300,null,null,null,350,null,null,null,"煽り高さ",null,789,null,null,null,"55D23L",null,null,null,null,null,4,null,"215/70R17.5",null,null,null,null,null,null,null,30,null,null,320,null,null,null,null,null,null,null,null,null,null,null,null,null,null,null,"SUBARU","0011189",null,null,null,null,"パプコ","ｰ"]
[null,"㊞",null,null,null,null,null,"極東",null,null,{"$f":"IFERROR(VLOOKUP(H17,BU:BV,2,0),\"\")","v":"0010540"},null,null,"三菱",null,null,{"$f":"IFERROR(VLOOKUP(N17,BZ:CA,2,0),\"\")","v":"0175204"},null,null,"AKT-MNB34C",null,null,null,null,"古河",null,null,{"$f":"IFERROR(VLOOKUP(Y17,BX:BY,2,0),\"\")","v":"0145600"},null,null,"THN085",null,null,null,null,"L445876",null,null,null,null,null,"12345-12345678-123456",null,null,null,null,null,null,null,null,null,null,null,null,null,null,null,null,null,null,null,null,null,null,null,null,"UDトラックス","0143321"]
[2,"500051",null,null,null,null,null,"高所作業車",null,null,null,null,null,null,null,null,null,null,null,"AB-110CD/144619",null,null,null,null,null,null,null,"MEX85Q-6827567",null,null,null,null,null,null,null,null,"2017-04-01",null,null,"いすゞ",null,null,null,{"$f":"IFERROR(VLOOKUP(AN18,BO:BP,2,0),\"\")","v":"0072408"},null,null,null,null,null,null,null,null,null,null,null,null,null,null,null,null,null,null,null,null,null,null,"マツダ","0072384"]
[null,null,null,null,null,null,null,"ﾎﾟｽﾄ新長期",null,null,null,3456789,null,null,null,"荷台内\n寸法",null,230,null,null,null,456,null,null,null,"煽り高さ",null,999,null,null,null,"65D23L",null,null,null,null,null,5]
[null,"㊞",null,null,null,null,null,null,null,null,{"$f":"IFERROR(VLOOKUP(H20,BU:BV,2,0),\"\")","v":""},null,null,null,null,null,{"$f":"IFERROR(VLOOKUP(N20,BZ:CA,2,0),\"\")","v":""},null,null,null,null,null,null,null,null,null,null,{"$f":"IFERROR(VLOOKUP(Y20,BX:BY,2,0),\"\")","v":""}]
[3,"500052",null,null,null,null,null,"ﾄﾗｯｸｸﾚｰﾝ／ﾗｼﾞｺﾝ　2ｔ/ＡＴ/３段/ETC/転倒防止",null,null,null,null,null,null,null,null,null,null,null,"RPG-NKN35AR",null,null,null,null,null,null,null,"NKN-351807",null,null,null,null,null,null,null,null,"2017-04-01",null,null,"三菱ふそう",null,null,null,{"$f":"IFERROR(VLOOKUP(AN21,BO:BP,2,0),\"\")","v":"0175204"}]
[null,null,null,null,null,null,null,"ﾎﾟｽﾄ新長期",null,null,null,980980,null,null,null,"荷台内\n寸法",null,12345,null,null,null,234,null,null,null,"煽り高さ",null,111,null,null,null,"185RD/65",null,null,null,null,null,6,null,"215-85R16",null,null,null,null,null,null,null,20,null,null,980]
[null,"㊞",null,null,null,null,null,"アイチ",null,null,{"$f":"IFERROR(VLOOKUP(H23,BU:BV,2,0),\"\")","v":"0010163"},null,null,"日野",null,null,{"$f":"IFERROR(VLOOKUP(N23,BZ:CA,2,0),\"\")","v":"0011124"},null,null,null,null,null,null,null,"タダノ",null,null,{"$f":"IFERROR(VLOOKUP(Y23,BX:BY,2,0),\"\")","v":"0010595"}]
[4,"500053",null,null,null,null,null,"散水車",null,null,null,null,null,null,null,null,null,null,null,"LD04-521",null,null,null,null,null,null,null,"ABC75-6751942",null,null,null,null,null,null,null,null,"2017-04-01",null,null,"ダイハツ",null,null,null,{"$f":"IFERROR(VLOOKUP(AN24,BO:BP,2,0),\"\")","v":"0072694"}]
[null,null,null,null,null,null,null,"2014年基準\n適合尿素",null,null,null,null,null,null,null,"荷台内\n寸法",null,null,null,null,null,null,null,null,null,"煽り高さ",null,null,null,null,null,null,null,null,null,null,null,2]
[null,"㊞",null,null,null,null,null,"マツモト",null,null,{"$f":"IFERROR(VLOOKUP(H26,BU:BV,2,0),\"\")","v":"0178340"},null,null,"日野",null,null,{"$f":"IFERROR(VLOOKUP(N26,BZ:CA,2,0),\"\")","v":"0011124"},null,null,"SMK04-003289",null,null,null,null,"前田",null,null,{"$f":"IFERROR(VLOOKUP(Y26,BX:BY,2,0),\"\")","v":"0020242"}]
[5,null,null,null,null,null,null,null,null,null,null,null,null,null,null,null,null,null,null,null,null,null,null,null,null,null,null,null,null,null,null,null,null,null,null,null,null,null,null,null,null,null,null,{"$f":"IFERROR(VLOOKUP(AN27,BO:BP,2,0),\"\")","v":""}]
[null,null,null,null,null,null,null,null,null,null,null,null,null,null,null,"荷台内\n寸法",null,null,null,null,null,null,null,null,null,"煽り高さ"]
[null,"㊞",null,null,null,null,null,null,null,null,{"$f":"IFERROR(VLOOKUP(H29,BU:BV,2,0),\"\")","v":""},null,null,null,null,null,{"$f":"IFERROR(VLOOKUP(N29,BZ:CA,2,0),\"\")","v":""},null,null,null,null,null,null,null,null,null,null,{"$f":"IFERROR(VLOOKUP(Y29,BX:BY,2,0),\"\")","v":""}]
[]
[]
[null,null,null,null,null,null,null,null,null,null,null,null,null,null,null,null,"上記の通り納品いたします。よろしく御査収下さい。"]
["・原本1部　コピー1部　合計2部の御提出をお願いします"]
["・最新の納品書は　https://www.to-rental.jp/　よりお願いします"]
["・ご不明な点がございましたら納入部門までお問い合わせ下さい。"]

{"sheet":"登録ナンバーあり","index":1,"n_rows":35,"n_cols":79,"rows_kept":35,"cut":false,"hidden":false,"merged":[[22,16,22,18],[22,19,22,23],[22,24,22,26],[22,27,22,29],[25,49,25,53],[28,13,28,15],[28,16,28,18],[28,19,28,23],[28,24,28,26],[28,27,28,29],[28,30,28,34],[28,35,28,40],[25,19,25,23],[25,24,25,26],[22,49,22,53],[23,19,23,26],[27,47,27,49],[28,41,28,48],[28,49,28,53],[16,41,16,48],[16,49,16,53],[19,35,19,40],[19,41,19,48],[18,31,18,36],[18,37,18,38],[25,27,25,29],[25,30,25,34],[25,35,25,40],[25,41,25,48],[19,49,19,53],[18,50,18,53],[21,50,21,53],[20,50,20,53],[17,43,17,45],[17,46,17,49],[23,50,23,53],[23,27,23,35],[23,36,23,38],[23,39,23,42],[23,43,23,45],[23,46,23,49],[24,47,24,49],[24,50,24,53],[21,47,21,49],[19,13,19,15],[19,16,19,18],[19,19,19,23],[19,24,19,26],[19,27,19,29],[19,30,19,34],[18,27,18,30],[20,43,20,45],[20,46,20,49],[21,27,21,30],[21,31,21,36],[21,37,21,38],[21,39,21,46],[12,17,12,20],[12,25,12,26],[12,21,12,24],[13,30,13,34],[13,24,13,26],[13,27,13,29],[18,39,18,46],[18,47,18,49],[13,49,13,53],[16,16,16,18],[16,19,16,23],[16,24,16,26],[16,27,16,29],[16,30,16,34],[16,35,16,40],[15,50,15,53],[14,19,14,26],[14,27,14,35],[14,36,14,38],[15,25,15,26],[15,27,15,30],[15,31,15,36],[15,37,15,38],[17,50,17,53],[7,0,8,10],[7,11,8,11],[7,12,8,12],[7,13,8,13],[7,14,8,14],[0,1,1,16],[0,37,0,39],[0,41,0,53],[1,37,1,53],[2,1,3,16],[2,37,2,53],[3,37,3,39],[3,40,3,50],[3,51,6,53],[4,37,5,50],[7,15,8,15],[7,16,8,16],[7,17,8,17],[7,18,8,18],[7,19,8,19],[7,20,8,20],[6,0,6,10],[6,11,6,21],[6,22,6,32],[7,43,8,43],[7,27,8,27],[7,28,8,28],[7,29,8,29],[7,30,8,30],[7,31,8,31],[7,32,8,32],[7,21,8,21],[7,22,8,22],[7,23,8,23],[7,24,8,24],[7,25,8,25],[7,26,8,26],[6,33,6,35],[6,37,6,50],[11,36,11,38],[11,39,11,42],[11,43,11,45],[11,46,11,49],[11,50,11,53],[12,37,12,38],[12,39,12,46],[12,47,12,49],[7,47,8,47],[7,48,8,48],[7,49,8,49],[7,50,8,53],[7,44,8,44],[7,45,8,45],[7,46,8,46],[12,31,12,36],[10,0,10,35],[11,0,13,0],[11,1,12,6],[11,7,11,18],[11,19,11,26],[11,27,11,35],[7,33,8,35],[7,37,8,42],[13,1,13,6],[13,7,13,9],[13,10,13,12],[12,50,12,53],[15,7,15,10],[15,11,15,14],[15,15,15,16],[15,17,15,20],[15,21,15,24],[14,39,14,42],[13,35,13,40],[13,41,13,48],[12,7,12,10],[12,11,12,14],[12,15,12,16],[12,27,12,30],[13,13,13,15],[13,16,13,18],[13,19,13,23],[14,43,14,45],[14,46,14,49],[14,50,14,53],[15,39,15,46],[15,47,15,49],[16,1,16,6],[16,7,16,9],[16,10,16,12],[17,0,19,0],[17,1,18,6],[17,7,17,18],[14,0,16,0],[14,1,15,6],[14,7,14,18],[18,7,18,10],[18,17,18,20],[16,13,16,15],[19,1,19,6],[19,7,19,9],[19,10,19,12],[18,11,18,14],[18,15,18,16],[20,1,21,6],[20,7,20,18],[20,19,20,26],[20,27,20,35],[20,36,20,38],[17,19,17,26],[17,27,17,35],[17,36,17,38],[17,39,17,42],[18,21,18,24],[18,25,18,26],[21,7,21,10],[21,11,21,14],[21,15,21,16],[21,17,21,20],[21,21,21,24],[21,25,21,26],[22,1,22,6],[22,7,22,9],[22,10,22,12],[23,0,25,0],[23,1,24,6],[23,7,23,18],[25,13,25,15],[25,16,25,18],[20,39,20,42],[20,0,22,0],[24,7,24,10],[24,11,24,14],[24,15,24,16],[24,17,24,20],[24,21,24,24],[24,25,24,26],[24,27,24,30],[24,31,24,36],[24,37,24,38],[24,39,24,46],[22,30,22,34],[22,35,22,40],[22,41,22,48],[22,13,22,15],[25,1,25,6],[25,7,25,9],[25,10,25,12],[26,0,28,0],[26,1,27,6],[26,7,26,18],[26,19,26,26],[26,27,26,35],[26,36,26,38],[27,7,27,10],[27,11,27,14],[27,15,27,16],[27,17,27,20],[27,21,27,24],[28,1,28,6],[28,7,28,9],[28,10,28,12],[31,16,32,32],[26,39,26,42],[26,43,26,45],[26,46,26,49],[26,50,26,53],[27,27,27,30],[27,31,27,36],[27,37,27,38],[27,39,27,46],[27,25,27,26],[27,50,27,53]]}
[null,"　納　品　書　",null,null,null,null,null,null,null,null,null,null,null,null,null,null,null,null,null,null,null,null,null,null,null,null,null,null,null,null,null,null,null,null,null,null,null,"住所",null,null,"〒",null,null,null,null,null,null,null,null,null,null,null,null,null,null,null,null,null,null,null,null,null,null,null,null,null,"エンジンメーカー","コード","新・古",null,"排ガス区分",null,"架装メーカー","メーカーコード",null,"ｸﾚｰﾝﾒｰｶｰ","メーカーコード","シャーシーメーカー","メーカーコード"]
[]
[null,"株式会社　東海大阪レンタル　御中",null,null,null,null,null,null,null,null,null,null,null,null,null,null,null,null,null,null,null,null,null,null,null,null,null,null,null,null,null,null,null,null,null,null,null,null,null,null,null,null,null,null,null,null,null,null,null,null,null,null,null,null,null,null,null,null,null,null,null,null,null,null,null,null,"いすゞ","0072408","0：新品",null,"未対応",null,"アイチ","0010163",null,"タダノ","0010595","いすゞ","0011059"]
[null,null,null,null,null,null,null,null,null,null,null,null,null,null,null,null,null,null,null,null,null,null,null,null,null,null,null,null,null,null,null,null,null,null,null,null,null,"社名",null,null,null,null,null,null,null,null,null,null,null,null,null,"印",null,null,null,null,null,null,null,null,null,null,null,null,null,null,"キャタピラー","0020073","１：中古",null,"一般",null,"極東","0010540",null,"古河","0145600","スズキ","0010747"]
[null,null,null,null,null,null,null,null,null,null,null,null,null,null,null,null,null,null,null,null,null,null,null,null,null,null,null,null,null,null,null,null,null,null,null,null,null,null,null,null,null,null,null,null,null,null,null,null,null,null,null,null,null,null,null,null,null,null,null,null,null,null,null,null,null,null,"クボタ","0072382",null,null,"トンネル",null,"新明和","0071750",null,"前田","0020242","ダイハツ","0072694"]
[null,null,null,null,null,null,null,null,null,null,null,null,null,null,null,null,null,null,null,null,null,null,null,null,null,null,null,null,null,null,null,null,null,null,null,null,null,null,null,null,null,null,null,null,null,null,null,null,null,null,null,null,null,null,null,null,null,null,null,null,null,null,null,null,null,null,"コマツ","0010021",null,null,"二次\n規制適合",null,"タダノ","0010595",null,null,null,"トヨタ","0010786"]
["納　入　部　門　名",null,null,null,null,null,null,null,null,null,null,"注　文　番　号（11桁）",null,null,null,null,null,null,null,null,null,null,"納 入 年 月 日",null,null,null,null,null,null,null,null,null,null,"新品・中古区分",null,null,null,null,null,null,null,null,null,null,null,null,null,null,null,null,null,null,null,null,null,null,null,null,null,null,null,null,null,null,null,null,"スズキ","0010747",null,null,"触媒",null,"古河","0145600",null,null,null,"日産","0011017"]
[null,null,null,null,null,null,null,null,null,null,null,null,null,null,null,null,null,null,null,null,null,null,null,null,null,null,"年",null,null,"月",null,null,"日",null,null,null,null,"取引先コード(7桁)",null,null,null,null,null,null,null,null,null,null,null,null,"000",null,null,null,null,null,null,null,null,null,null,null,null,null,null,null,"ダイハツ","0072694",null,null,"三次\n規制適合",null,"マツモト","0178340",null,null,null,"日野","0011124"]
[null,null,null,null,null,null,null,null,null,null,null,null,null,null,null,null,null,null,null,null,null,null,null,null,null,null,null,null,null,null,null,null,null,null,null,null,null,null,null,null,null,null,null,null,null,null,null,null,null,null,null,null,null,null,null,null,null,null,null,null,null,null,null,null,null,null,"トヨタ","0010786",null,null,"ｵﾌﾛｰﾄﾞ",null,"ﾓﾘﾀｴｺﾉｽ","0090511",null,null,null,"ホンダ","0077245"]
[null,null,null,null,null,null,null,null,null,null,null,null,null,null,null,null,null,null,null,null,null,null,null,null,null,null,null,null,null,null,null,null,null,null,null,null,null,null,null,null,null,null,null,null,null,null,null,null,null,null,null,null,null,null,null,null,null,null,null,null,null,null,null,null,null,null,"日産","0011017",null,null,"2011年\n基準適合",null,"兼松","1022711",null,null,null,"三菱","0175204"]
["【商　品　詳　細　情　報　　報　告　書】",null,null,null,null,null,null,null,null,null,null,null,null,null,null,null,null,null,null,null,null,null,null,null,null,null,null,null,null,null,null,null,null,null,null,null,null,null,null,null,null,null,null,null,null,null,null,null,null,null,null,null,null,null,null,null,null,null,null,null,null,null,null,null,null,null,"日野","0011124",null,null,"2014年\n基準適合",null,"酒井機工","0090170",null,null,null,"SUBARU","0011189"]
["No","東海大阪レンタル\n管 理 番 号",null,null,null,null,null,"機種（品名）",null,null,null,null,null,null,null,null,null,null,null,"性能（規格・型式）",null,null,null,null,null,null,null,"製造番号（シリアル）",null,null,null,null,null,null,null,null,"製造年月\n(西暦4桁)",null,null,"原動機\nメーカー",null,null,null,"メーカー\nコード",null,null,"原動機型式",null,null,null,"原動機番号",null,null,null,null,null,null,null,null,null,null,null,null,null,null,null,"三菱自動車","0072386",null,null,"2014年基準\n適合尿素",null,"ﾄｰﾌﾟﾗﾊﾝﾀ","0074161",null,null,null,"UDトラックス","0143321"]
[null,null,null,null,null,null,null,"排ガス区分",null,null,null,"キー番号",null,null,null,"荷台内\n寸法",null,"長さ\nL（ｍｍ）",null,null,null,"幅\nW （ｍｍ）",null,null,null,"煽り高さ",null,"高さ\nH （ｍｍ）",null,null,null,"バッテリーサイズ",null,null,null,null,null,"バッテリー\n個数",null,"タイヤサイズ",null,null,null,null,null,null,null,"尿素タンク容量\n（L）",null,null,"燃料タンク容量\n（L）",null,null,null,null,null,null,null,null,null,null,null,null,null,null,null,"三菱重工","0072386",null,null,"ﾎﾟｽﾄ新長期",null,"加藤","0075012"]
[null,"TOR照合",null,null,null,null,null,"架装\nメーカー",null,null,"メーカー\nコード",null,null,"シャーシ\nメーカー",null,null,"メーカー\nコード",null,null,"シャーシ型式",null,null,null,null,"クレーン\nメーカー",null,null,"メーカー\nコード",null,null,"クレーン型式",null,null,null,null,"クレーン製造番号",null,null,null,null,null,"ETC車載番号",null,null,null,null,null,null,null,"備考",null,null,null,null,null,null,null,null,null,null,null,null,null,null,null,null,"三菱ふそう","0175204",null,null,"ﾎﾟｽﾄﾎﾟｽﾄ\n新長期",null,"小平産業","ｰ"]
[1,null,null,null,null,null,null,null,null,null,null,null,null,null,null,null,null,null,null,null,null,null,null,null,null,null,null,null,null,null,null,null,null,null,null,null,null,null,null,null,null,null,null,{"$f":"IFERROR(VLOOKUP(AN15,BO:BP,2,0),\"\")","v":""},null,null,null,null,null,null,null,null,null,null,null,null,null,null,null,null,null,null,null,null,null,null,"ヤンマー","0072282",null,null,null,null,"東洋ﾎﾞﾃﾞｰ","0095921"]
[null,null,null,null,null,null,null,null,null,null,null,null,null,null,null,"荷台内\n寸法",null,null,null,null,null,null,null,null,null,"煽り高さ",null,null,null,null,null,null,null,null,null,null,null,null,null,null,null,null,null,null,null,null,null,null,null,null,null,null,null,null,null,null,null,null,null,null,null,null,null,null,null,null,"SUBARU","0011189",null,null,null,null,"パプコ","ｰ"]
[null,"㊞",null,null,null,null,null,null,null,null,{"$f":"IFERROR(VLOOKUP(H17,BU:BV,2,0),\"\")","v":""},null,null,null,null,null,{"$f":"IFERROR(VLOOKUP(N17,BZ:CA,2,0),\"\")","v":""},null,null,null,null,null,null,null,null,null,null,{"$f":"IFERROR(VLOOKUP(Y17,BX:BY,2,0),\"\")","v":""},null,null,null,null,null,null,null,null,null,null,null,null,null,null,null,null,null,null,null,null,null,null,null,null,null,null,null,null,null,null,null,null,null,null,null,null,null,null,"UDトラックス","0143321"]
[2,null,null,null,null,null,null,null,null,null,null,null,null,null,null,null,null,null,null,null,null,null,null,null,null,null,null,null,null,null,null,null,null,null,null,null,null,null,null,null,null,null,null,{"$f":"IFERROR(VLOOKUP(AN18,BO:BP,2,0),\"\")","v":""},null,null,null,null,null,null,null,null,null,null,null,null,null,null,null,null,null,null,null,null,null,null,"マツダ","0072384"]
[null,null,null,null,null,null,null,null,null,null,null,null,null,null,null,"荷台内\n寸法",null,null,null,null,null,null,null,null,null,"煽り高さ"]
[null,"㊞",null,null,null,null,null,null,null,null,{"$f":"IFERROR(VLOOKUP(H20,BU:BV,2,0),\"\")","v":""},null,null,null,null,null,{"$f":"IFERROR(VLOOKUP(N20,BZ:CA,2,0),\"\")","v":""},null,null,null,null,null,null,null,null,null,null,{"$f":"IFERROR(VLOOKUP(Y20,BX:BY,2,0),\"\")","v":""}]
[3,null,null,null,null,null,null,null,null,null,null,null,null,null,null,null,null,null,null,null,null,null,null,null,null,null,null,null,null,null,null,null,null,null,null,null,null,null,null,null,null,null,null,{"$f":"IFERROR(VLOOKUP(AN21,BO:BP,2,0),\"\")","v":""}]
[null,null,null,null,null,null,null,null,null,null,null,null,null,null,null,"荷台内\n寸法",null,null,null,null,null,null,null,null,null,"煽り高さ"]
[null,"㊞",null,null,null,null,null,null,null,null,{"$f":"IFERROR(VLOOKUP(H23,BU:BV,2,0),\"\")","v":""},null,null,null,null,null,{"$f":"IFERROR(VLOOKUP(N23,BZ:CA,2,0),\"\")","v":""},null,null,null,null,null,null,null,null,null,null,{"$f":"IFERROR(VLOOKUP(Y23,BX:BY,2,0),\"\")","v":""}]
[4,null,null,null,null,null,null,null,null,null,null,null,null,null,null,null,null,null,null,null,null,null,null,null,null,null,null,null,null,null,null,null,null,null,null,null,null,null,null,null,null,null,null,{"$f":"IFERROR(VLOOKUP(AN24,BO:BP,2,0),\"\")","v":""}]
[null,null,null,null,null,null,null,null,null,null,null,null,null,null,null,"荷台内\n寸法",null,null,null,null,null,null,null,null,null,"煽り高さ"]
[null,"㊞",null,null,null,null,null,null,null,null,{"$f":"IFERROR(VLOOKUP(H26,BU:BV,2,0),\"\")","v":""},null,null,null,null,null,{"$f":"IFERROR(VLOOKUP(N26,BZ:CA,2,0),\"\")","v":""},null,null,null,null,null,null,null,null,null,null,{"$f":"IFERROR(VLOOKUP(Y26,BX:BY,2,0),\"\")","v":""}]
[5,null,null,null,null,null,null,null,null,null,null,null,null,null,null,null,null,null,null,null,null,null,null,null,null,null,null,null,null,null,null,null,null,null,null,null,null,null,null,null,null,null,null,{"$f":"IFERROR(VLOOKUP(AN27,BO:BP,2,0),\"\")","v":""}]
[null,null,null,null,null,null,null,null,null,null,null,null,null,null,null,"荷台内\n寸法",null,null,null,null,null,null,null,null,null,"煽り高さ"]
[null,"㊞",null,null,null,null,null,null,null,null,{"$f":"IFERROR(VLOOKUP(H29,BU:BV,2,0),\"\")","v":""},null,null,null,null,null,{"$f":"IFERROR(VLOOKUP(N29,BZ:CA,2,0),\"\")","v":""},null,null,null,null,null,null,null,null,null,null,{"$f":"IFERROR(VLOOKUP(Y29,BX:BY,2,0),\"\")","v":""}]
[]
[]
[null,null,null,null,null,null,null,null,null,null,null,null,null,null,null,null,"上記の通り納品いたします。よろしく御査収下さい。"]
["・原本1部　コピー1部　合計2部の御提出をお願いします"]
["・最新の納品書は　https://www.to-rental.jp/　よりお願いします"]
["・ご不明な点がございましたら納入部門までお問い合わせ下さい。"]